bitfinex/quotes_ETHUSD_20250415
["timestamp","ask_amount","ask_price","bid_price","bid_amount"]
[1744679900094,6.16158,1623.0,1622.6,13.15304]
[1744679900299,12.32322,1623.0,1622.6,6.16279]
[1744679900702,6.16183,1622.9,1622.6,6.16279]
[1744679901299,6.16183,1622.9,1622.6,12.32561]
[1744679901495,6.91449,1623.1,1622.7,6.16238]
[1744679901699,12.32316,1623.0,1622.7,6.16238]
[1744679902317,1.444849,1623.1,1622.6,6.16283]
[1744679902520,6.16275,1622.7,1622.4,6.16357]
[1744679902710,0.7543,1622.7,1622.3,5.678]
[1744679902908,0.7543,1622.7,1622.5,6.16307]
[1744679903312,0.7543,1622.7,1622.4,9.7315]
[1744679903520,6.91701,1622.7,1622.4,3.5678]
[1744679903718,6.16298,1622.6,1622.4,3.5678]
[1744679904303,6.16298,1622.6,1622.3,11.84194]
[1744679904486,12.32618,1622.6,1622.3,5.678]
[1744679904698,0.7543,1622.7,1622.2,3.0]
[1744679904699,6.16345,1622.5,1622.2,3.0]
[1744679905222,12.32698,1622.5,1622.2,9.16445]
[1744679905405,6.16429,1622.3,1622.1,0.05]
[1744679905600,6.16446,1622.2,1622.1,0.05]
[1744679905806,6.91786,1622.2,1622.1,0.05]
[1744679907128,9.5238274,1622.2,1622.1,0.05]
[1744679907327,16.77263614,1622.2,1622.1,0.05]
[1744679909623,17.32263614,1622.2,1622.1,0.05]
[1744679910227,17.32263614,1622.2,1622.1,1e-05]
[1744679910535,20.32263614,1622.2,1622.1,1e-05]
[1744679911025,17.16666874,1622.2,1622.1,1e-05]
[1744679911212,14.16666874,1622.2,1622.1,1e-05]
[1744679913218,14.71666874,1622.2,1622.1,1e-05]
[1744679913422,17.32263614,1622.2,1622.1,1e-05]
[1744679913635,20.32263614,1622.2,1622.1,1e-05]
[1744679916441,26.46263614,1622.2,1622.1,1e-05]
[1744679916632,26.46263614,1622.2,1621.1,0.8399]
[1744679916633,6.16827,1621.2,1621.1,0.05]
[1744679917441,6.98665,1621.3,1621.1,0.05]
[1744679917617,6.98649,1621.3,1621.1,0.05]
[1744679919154,13.15464,1621.3,1621.1,0.05]
[1744679919351,6.16827,1621.2,1621.1,0.05]
[1744679920753,7.483746,1621.2,1621.1,0.05]
[1744679923154,8.841146,1621.2,1621.1,0.05]
[1744679923328,11.841146,1621.2,1621.1,0.05]
[1744679923748,6.17051,1620.7,1620.5,0.8295]
[1744679923929,6.17051,1620.7,1620.3,12.68617]
[1744679924253,6.17051,1620.7,1620.4,6.17119]
[1744679924551,12.34091,1620.7,1620.3,12.68605]
[1744679924759,12.34091,1620.7,1620.3,18.85758]
[1744679924960,12.34082,1620.7,1620.3,18.85758]
[1744679925167,7.404482,1620.7,1620.4,6.17128]
[1744679925472,13.14654,1620.9,1620.5,12.34156]
[1744679925778,13.14654,1620.9,1620.5,6.17077]
[1744679925779,6.16986,1620.8,1620.5,6.17077]
[1744679926066,5.685,1621.0,1620.6,6.95158]
[1744679926267,0.7801,1621.1,1621.0,6.16903]
[1744679926440,0.7801,1621.3,1620.7,6.16979]
[1744679926638,6.17017,1620.7,1620.5,5.686]
[1744679926837,6.17056,1620.6,1620.4,0.7655]
[1744679927060,6.16986,1620.8,1620.5,6.17081]
[1744679927272,6.97177,1620.9,1620.6,6.17046]
[1744679927485,13.14148,1620.9,1620.5,6.17081]
[1744679927889,13.14148,1620.9,1620.5,6.1708]
[1744679928106,5.686,1621.0,1620.5,6.1708]
[1744679928107,5.686,1621.0,1620.5,1.310759]
[1744679928303,5.686,1621.0,1620.7,6.17005]
[1744679928491,11.85503,1621.0,1620.7,6.17005]
[1744679929154,5.686,1621.0,1620.6,0.7655]
[1744679929355,5.686,1621.0,1620.8,6.16963]
[1744679929856,5.686,1621.0,1620.7,6.17016]
[1744679930255,5.686,1621.0,1620.7,12.34015]
[1744679930494,5.686,1621.0,1620.8,6.16975]
[1744679930653,5.686,1621.0,1620.8,12.33942]
[1744679930855,7.14961,1621.3,1620.9,6.16921]
[1744679931174,19.48611,1621.3,1620.9,6.92391]
[1744679931485,13.31786,1621.3,1621.0,6.16902]
[1744679931664,19.48597,1621.3,1621.0,6.16902]
[1744679931866,19.48597,1621.3,1620.9,6.92391]
[1744679932065,19.48597,1621.3,1620.8,7.403682]
[1744679932066,6.16895,1621.1,1620.8,1.233942]
[1744679932261,6.16895,1621.1,1620.7,6.96931]
[1744679932466,12.33796,1621.1,1620.7,13.13934]
[1744679932666,6.16885,1621.1,1620.7,13.13934]
[1744679932861,6.16827,1621.2,1620.7,0.7992]
[1744679933071,12.3391,1620.9,1620.5,13.17243]
[1744679933269,6.16989,1620.8,1620.5,0.8308]
[1744679933678,12.33993,1620.8,1620.5,0.8308]
[1744679934490,6.4997,1621.2,1620.7,6.16981]
[1744679934663,6.4997,1621.2,1620.6,6.17053]
[1744679934984,0.8089,1620.8,1620.3,6.99333]
[1744679935185,6.97793,1621.0,1620.7,6.17017]
[1744679935366,12.33905,1620.9,1620.6,6.17017]
[1744679935566,1.314795,1620.9,1620.3,3.4279674]
[1744679935889,12.34028,1620.8,1620.4,6.17115]
[1744679937421,12.34028,1620.8,1620.4,12.34234]
[1744679937697,12.34028,1620.8,1620.4,12.34235]
[1744679938004,6.16946,1620.9,1620.5,6.1709]
[1744679938204,6.17,1620.8,1620.5,6.1709]
[1744679938400,6.78683,1620.8,1620.4,6.17125]
[1744679938613,6.17037,1620.7,1620.4,6.17125]
[1744679938977,6.17037,1620.7,1620.4,6.17115]
[1744679939203,6.78683,1620.8,1620.4,6.17131]
[1744679939504,6.97807,1621.0,1620.7,6.17014]
[1744679939901,13.14728,1621.0,1620.6,6.96575]
[1744679940072,6.16941,1620.9,1620.6,6.96561]
[1744679940272,6.97807,1621.0,1620.7,6.17014]
[1744679940478,6.16872,1621.1,1620.7,6.17014]
[1744679940687,5.687,1621.2,1621.0,6.1689]
[1744679941021,6.4966,1621.8,1621.2,6.92067]
[1744679941309,6.4966,1621.8,1621.5,6.16706]
[1744679941823,18.82893,1621.8,1621.4,6.16747]
[1744679942102,20.711823,1621.8,1621.4,6.16747]
[1744679942304,6.16643,1621.7,1621.2,0.7524]
[1744679942518,14.545603,1621.8,1621.5,6.16707]
[1744679943021,20.66124361,1622.1,1621.7,6.16633]
[1744679943383,6.16535,1622.0,1621.6,6.63113212]
[1744679943584,6.16602,1621.8,1621.5,6.16708]
[1744679944012,6.16584,1621.9,1621.5,12.33406]
[1744679944316,11.84995,1622.1,1621.7,6.16614]
[1744679944490,5.685,1622.1,1621.7,1.399614]
[1744679944692,6.1639,1622.4,1622.1,6.99192]
[1744679944693,0.765,1622.4,1622.1,6.99192]
[1744679944899,13.10917,1622.6,1622.2,12.32871]
[1744679945115,13.10917,1622.6,1622.2,6.16433]
[1744679945294,6.1637,1622.4,1622.1,0.8272]
[1744679945627,7.396403,1622.4,1622.1,0.8272]
[1744679945825,0.783,1622.6,1622.1,0.8272]
[1744679945983,53.799,1622.7,1622.4,6.16338]
[1744679946187,5.685,1622.7,1622.4,6.16338]
[1744679946401,5.685,1622.7,1622.3,6.16404]
[1744679946608,6.16309,1622.6,1622.2,12.78604808]
[1744679946783,11.84783,1622.7,1622.3,6.16408]
[1744679946983,13.728632,1622.7,1622.3,6.16408]
[1744679947181,6.163,1622.6,1622.3,6.16408]
[1744679947419,6.163,1622.6,1622.2,12.3286]
[1744679947628,6.163,1622.6,1622.3,6.16402]
[1744679948055,11.84449,1623.0,1622.3,0.06163513]
[1744679948233,6.16182,1622.9,1622.6,6.16274]
[1744679948555,12.3249,1622.8,1622.5,0.7709]
[1744679948852,6.16241,1622.8,1622.4,6.16355]
[1744679949030,6.481,1623.0,1622.3,1.08510528]
[1744679949210,6.481,1623.0,1622.3,0.7709]
[1744679949409,6.16312,1622.6,1622.3,0.7709]
[1744679949616,6.16231,1622.8,1622.3,0.83253475]
[1744679949821,6.481,1623.0,1622.4,6.16343]
[1744679950016,6.16234,1622.8,1622.4,6.16343]
[1744679950221,6.16234,1622.8,1622.4,13.020393]
[1744679950419,6.16234,1622.8,1622.4,13.020443]
[1744679950625,11.84474,1623.0,1622.7,6.1625]
[1744679951013,11.84464,1623.0,1622.6,6.1628]
[1744679951336,12.32414,1622.9,1622.5,6.92597]
[1744679951721,6.16197,1622.9,1622.6,6.16288]
[1744679952236,6.867464,1623.0,1622.5,0.7627]
[1744679952537,6.16219,1622.8,1622.5,0.7627]
[1744679952741,6.16263,1622.7,1622.5,0.7627]
[1744679954221,6.16219,1622.8,1622.5,6.92583]
[1744679954425,6.16219,1622.8,1622.5,0.7627]
[1744679954634,12.32462,1622.8,1622.5,0.7627]
[1744679955242,12.32471,1622.8,1622.5,0.7627]
[1744679956313,11.84475,1623.0,1622.6,6.16273]
[1744679956519,6.16199,1622.9,1622.6,6.16273]
[1744679956726,12.324,1622.9,1622.5,13.0893]
[1744679957351,6.16199,1622.9,1622.6,6.16293]
[1744679957554,19.273625,1623.0,1622.6,12.32558]
[1744679957924,6.16196,1622.9,1622.5,6.92594]
[1744679958129,6.16269,1622.7,1622.5,0.7627]
[1744679958325,6.16236,1622.8,1622.5,0.7627]
[1744679958830,19.273455,1623.0,1622.5,0.8243267]
[1744679959037,19.273455,1623.0,1622.6,6.16274]
[1744679959639,6.16181,1622.9,1622.6,6.16274]
[1744679960351,0.7725,1623.3,1623.1,6.16089]
[1744679960551,0.05,1623.4,1623.2,6.16032]
[1744679960752,6.2102,1623.4,1623.1,0.7611]
[1744679961130,0.05,1623.4,1623.1,13.08268]
[1744679961335,0.05,1623.4,1623.3,6.16029]
[1744679961859,0.05,1623.4,1623.3,6.22189232]
[1744679962355,0.05,1623.4,1623.3,9.99909232]
[1744679962763,0.05,1623.4,1623.3,9.93749]
[1744679963339,0.05,1623.4,1623.3,9.99907427]
[1744679963662,0.05,1623.4,1623.3,11.86149319]
[1744679963843,0.05,1623.4,1623.3,3.17108259]
[1744679964048,0.05,1623.4,1623.3,9.39296895]
[1744679965169,0.05,1623.4,1623.1,4.314429]
[1744679965670,0.05,1623.4,1623.1,1.314429]
[1744679965671,6.21008,1623.4,1623.1,1.314429]
[1744679965866,6.16072,1623.2,1623.0,0.8296]
[1744679966032,6.16104,1623.1,1622.9,5.678]
[1744679966365,6.16072,1623.2,1622.9,5.678]
[1744679966366,6.16072,1623.2,1623.0,4.0]
[1744679966767,6.16072,1623.2,1622.9,12.3117783]
[1744679966974,6.16072,1623.2,1622.9,18.4567379]
[1744679967130,6.16072,1623.2,1622.9,12.2949979]
[1744679967465,6.16035,1623.3,1622.9,12.2949979]
[1744679967670,6.16035,1623.3,1623.0,6.16135]
[1744679967857,12.37005,1623.4,1623.0,12.3227]
[1744679968056,12.37009,1623.4,1623.0,6.16135]
[1744679968260,12.37009,1623.4,1623.0,8.57595496]
[1744679968459,6.20997,1623.4,1623.0,8.57587496]
[1744679968710,6.20997,1623.4,1623.2,6.93942]
[1744679968711,0.05,1623.4,1623.2,6.93942]
[1744679968838,0.05,1623.4,1623.2,13.09994]
[1744679969166,0.05,1623.4,1623.2,6.93942]
[1744679969335,0.05,1623.4,1623.2,14.409941]
[1744679969734,0.05,1623.4,1623.3,9.16029]
[1744679971664,0.05,1623.4,1623.3,3.0]
[1744679971869,0.05,1623.4,1623.3,9.16029]
[1744679972174,0.05,1623.4,1623.3,9.22188838]
[1744679972478,0.05,1623.4,1623.3,3.0]
[1744679972851,0.05,1623.4,1623.3,9.16029]
[1744679973096,0.05,1623.4,1623.3,9.22188445]
[1744679974253,0.05,1623.4,1623.3,3.0]
[1744679974666,6.20996,1623.4,1623.2,2.088941]
[1744679974853,6.16029,1623.3,1623.0,14.73729496]
[1744679975053,0.05,1623.4,1623.0,2.41460496]
[1744679975249,6.98987,1623.2,1622.6,5.675]
[1744679975606,6.16142,1623.0,1622.5,0.7628]
[1744679975899,6.1631,1622.6,1622.2,13.09157]
[1744679976061,12.32628,1622.6,1622.3,3.0]
[1744679976268,12.32628,1622.6,1622.2,6.92712]
[1744679976474,6.16276,1622.7,1622.3,10.856422]
[1744679976679,12.32555,1622.7,1622.3,6.91805741]
[1744679976866,6.16276,1622.7,1622.3,13.08194741]
[1744679977071,6.16276,1622.7,1622.3,13.020312]
[1744679977587,6.16276,1622.7,1622.3,6.856422]
[1744679977786,6.16328,1622.6,1622.3,0.692712]
[1744679977952,6.16257,1622.7,1622.3,6.856662]
[1744679978152,6.16257,1622.7,1622.4,0.6856662]
[1744679978390,6.16302,1622.6,1622.3,6.62151515]
[1744679979268,6.16257,1622.7,1622.3,12.84704715]
[1744679979481,6.16257,1622.7,1622.3,12.78540515]
[1744679979792,6.16299,1622.6,1622.3,6.62148515]
[1744679981610,6.1623,1622.8,1622.4,6.16354]
[1744679981803,0.8292,1622.9,1622.4,0.66827572]
[1744679982004,6.16262,1622.7,1622.3,0.45758515]
[1744679982210,6.16262,1622.7,1622.3,6.16394]
[1744679982565,12.32629,1622.6,1622.2,9.92712]
[1744679982862,6.16309,1622.6,1622.2,16.09141]
[1744679983521,6.16145,1623.0,1622.6,6.98649]
[1744679983664,12.32236,1623.1,1622.8,6.16212]
[1744679984007,0.813,1623.3,1622.7,0.698649]
[1744679984164,6.16194,1622.9,1622.6,6.98669]
[1744679984611,6.16109,1623.1,1622.8,6.16212]
[1744679986610,6.16154,1623.0,1622.7,6.16255]
[1744679986774,6.16069,1623.2,1622.6,6.98672]
[1744679987600,6.16232,1622.8,1622.6,0.8238]
[1744679988621,6.16192,1622.9,1622.6,0.8238]
[1744679988825,6.97809,1623.3,1622.7,6.16244]
[1744679989129,12.32255,1623.1,1622.7,12.38644909]
[1744679989279,12.32255,1623.1,1622.7,12.32483]
[1744679989477,6.16143,1623.0,1622.7,6.16239]
[1744679990825,6.16143,1623.0,1622.7,6.61299332]
[1744679990987,6.16143,1623.0,1622.7,8.0734526]
[1744679991209,53.766,1623.4,1622.8,0.7679]
[1744679991393,0.05,1623.4,1623.0,0.7679]
[1744679991695,0.05,1623.4,1623.3,6.16029]
[1744679991943,0.05,1623.4,1623.3,8.160286]
[1744679992429,0.05,1623.4,1623.3,8.22188083]
[1744679992730,0.05,1623.4,1623.3,8.68740571]
[1744679992912,0.05,1623.4,1623.3,2.46552088]
[1744679993500,0.05,1623.4,1623.3,8.62581088]
[1744679994232,0.05,1623.4,1623.3,2.46552088]
[1744679995829,0.05,1623.4,1623.2,12.32101]
[1744679995830,0.05,1623.4,1623.2,3.0]
[1744679996486,6.20994,1623.4,1623.2,3.0]
[1744679997217,6.20994,1623.4,1623.1,7.37913629]
[1744679998822,6.20994,1623.4,1623.1,1.21838629]
[1744679999125,6.16093,1623.2,1622.8,12.59063]
[1744679999485,6.16143,1623.0,1622.8,6.4285]
[1744679999823,6.16207,1622.9,1622.7,0.4602978]
[1744680000021,12.32414,1622.9,1622.6,0.7525]
[1744680000219,6.16171,1623.0,1622.7,4.0]
[1744680000420,7.062394,1623.3,1622.7,11.253782]
[1744680000622,6.16165,1623.0,1622.7,5.091532]
[1744680000793,6.16165,1623.0,1622.7,4.0]
[1744680000988,13.222844,1623.3,1622.6,1.216308]
[1744680001197,12.60196,1623.3,1622.9,6.16168]
[1744680001496,6.16116,1623.1,1622.8,6.16218]
[1744680001809,6.16087,1623.2,1622.8,6.16205]
[1744680002827,6.16111,1623.1,1622.8,6.16205]
[1744680003017,6.16111,1623.1,1622.8,6.16202]
[1744680003398,12.32184,1623.2,1622.8,6.16202]
[1744680003724,6.16109,1623.1,1622.8,6.778222]
[1744680004528,6.16087,1623.2,1622.8,12.940282]
[1744680004718,5.674,1623.3,1622.9,0.7882]
[1744680005037,5.674,1623.3,1623.0,6.16128]
[1744680005234,0.05,1623.4,1623.3,6.96979]
[1744680005529,0.05,1623.4,1623.3,10.03138542]
[1744680005725,0.05,1623.4,1623.3,9.96979]
[1744680008236,0.05,1623.4,1623.3,10.03137656]
[1744680008441,0.05,1623.4,1623.3,18.74199424]
[1744680008735,0.05,1623.4,1623.3,21.1706601]
[1744680008908,0.8275,1624.2,1623.8,6.15808]
[1744680009114,6.98441,1624.2,1623.8,12.77726604]
[1744680009308,6.98441,1624.2,1623.9,6.15788]
[1744680009513,6.15691,1624.2,1623.9,6.15788]
[1744680010498,12.31399,1624.2,1623.9,6.15788]
[1744680010730,6.15796,1624.0,1623.7,0.7657]
[1744680010933,13.08975,1624.1,1623.7,6.98584045]
[1744680011237,6.15732,1624.1,1623.8,6.15838]
[1744680011446,12.31407,1624.2,1623.8,6.15823]
[1744680011648,6.15777,1624.0,1623.7,6.92435]
[1744680011956,6.15777,1624.0,1623.7,7.616785]
[1744680012238,6.15859,1623.8,1623.5,3.7772]
[1744680012426,6.96678,1623.9,1623.5,3.8387865]
[1744680012630,13.12498,1623.9,1623.6,6.15914]
[1744680013029,6.96678,1623.9,1623.6,6.15914]
[1744680013350,6.15766,1624.0,1623.7,6.15857]
[1744680013533,0.8087,1624.2,1623.9,6.15797]
[1744680013919,13.12288,1624.2,1623.8,6.93554]
[1744680014119,6.20644,1624.4,1624.0,6.15749]
[1744680014120,7.01506,1624.4,1624.0,6.15749]
[1744680014440,0.8587,1624.4,1624.1,6.1572]
[1744680014744,0.05,1624.4,1624.1,1.39907698]
[1744680014911,0.05,1624.4,1624.1,6.93441]
[1744680015116,6.15668,1624.3,1624.1,0.7772]
[1744680015447,6.15668,1624.3,1623.9,13.09299]
[1744680015745,6.1569,1624.2,1623.9,6.93506]
[1744680016312,12.31349,1624.3,1623.9,13.09293]
[1744680016513,12.31349,1624.3,1623.9,8.544353]
[1744680017014,0.8166,1624.2,1623.9,1.609293]
[1744680017214,6.15814,1623.9,1623.7,3.46387181]
[1744680017419,6.1573,1624.1,1623.5,0.7707]
[1744680017624,6.15936,1623.6,1623.3,6.93083]
[1744680017824,12.31872,1623.6,1623.4,4.0]
[1744680018026,6.15936,1623.6,1623.3,1.225321]
[1744680018234,12.31874,1623.6,1623.3,1.225321]
[1744680018433,6.15936,1623.6,1623.3,1.225321]
[1744680018931,6.15935,1623.6,1623.3,1.225321]
[1744680019552,6.15935,1623.6,1623.3,9.36899551]
[1744680019924,12.31872,1623.6,1623.3,9.3074011]
[1744680020144,6.15967,1623.5,1623.3,3.1471311]
[1744680020728,6.15991,1623.4,1623.1,3.8199]
[1744680020918,6.16048,1623.3,1622.9,11.8337]
[1744680021124,6.16067,1623.2,1622.9,12.65357]
[1744680021324,0.7971,1623.4,1622.9,6.94296566]
[1744680021524,6.1609,1623.2,1622.9,7.69888243]
[1744680021743,0.7971,1623.4,1622.7,0.8199]
[1744680021932,6.16238,1622.8,1622.5,0.811]
[1744680022137,6.16238,1622.8,1622.4,6.16364]
[1744680022354,6.16185,1622.9,1622.5,10.22472668]
[1744680022557,6.16185,1622.9,1622.6,6.16294]
[1744680022760,0.823,1623.0,1622.5,4.0]
[1744680022963,6.16337,1622.5,1622.3,6.483]
[1744680023272,6.16337,1622.5,1622.3,3.811]
[1744680023871,6.16337,1622.5,1622.3,3.0]
[1744680024176,6.16311,1622.6,1622.3,3.0]
[1744680024467,12.32629,1622.6,1622.3,3.0]
[1744680025373,6.16193,1622.9,1622.3,0.916445]
[1744680025568,6.16388,1622.4,1622.2,3.0]
[1744680025777,6.93838,1622.4,1622.2,3.0]
[1744680025961,6.16408,1622.3,1621.9,7.43876851]
[1744680026274,6.16409,1622.3,1621.9,10.43893851]
[1744680026474,6.16449,1622.2,1621.9,7.43893851]
[1744680026644,6.16449,1622.2,1621.9,9.36671036]
[1744680027073,6.16449,1622.2,1621.9,3.20119036]
[1744680027376,12.32923,1622.2,1621.9,1.27341851]
[1744680027591,6.16487,1622.1,1621.8,5.673]
[1744680027746,12.32908,1622.2,1621.8,11.83879]
[1744680027948,12.32916,1622.2,1621.8,6.16579]
[1744680028249,6.16488,1622.1,1621.8,6.16579]
[1744680028578,12.33002,1622.1,1621.7,6.98303]
[1744680028873,6.16488,1622.1,1621.8,6.16587]
[1744680029078,0.7745,1622.4,1621.8,0.06165292]
[1744680029377,6.93824,1622.4,1622.0,6.16522]
[1744680029550,6.16412,1622.3,1622.0,6.16522]
[1744680031589,6.16519,1622.1,1621.8,3.0]
[1744680031748,6.4540026,1622.2,1621.9,6.16554]
[1744680032659,0.2895226,1622.2,1622.1,6.16484]
[1744680033061,12.3271,1622.5,1622.1,6.16484]
[1744680033062,6.16355,1622.5,1622.1,6.16484]
[1744680033257,0.27394544,1622.2,1622.1,6.62222865]
[1744680033566,0.8111,1622.8,1622.6,6.16279]
[1744680033781,6.16183,1622.9,1622.6,6.16279]
[1744680034092,6.97256,1623.0,1622.6,6.16279]
[1744680034093,0.27402303,1622.7,1622.6,6.16279]
[1744680034299,0.7754,1623.2,1622.6,3.88502281]
[1744680034589,6.16108,1623.1,1622.7,6.16256]
[1744680034792,0.27759132,1623.1,1622.7,6.16256]
[1744680034960,0.27759132,1623.1,1622.9,12.32304]
[1744680035159,6.93582,1623.3,1622.9,12.32304]
[1744680035360,0.27759132,1623.0,1622.9,6.16149]
[1744680035590,6.16073,1623.2,1622.9,7.393851]
[1744680035891,0.27759132,1623.0,1622.9,7.393851]
[1744680036089,6.16073,1623.2,1622.9,7.393851]
[1744680036393,6.93582,1623.3,1622.9,13.555521]
[1744680036598,0.27759132,1623.1,1622.9,7.393851]
[1744680036762,6.16188,1622.9,1622.6,10.43974243]
[1744680036957,6.16188,1622.9,1622.6,7.43974243]
[1744680037158,6.16245,1622.8,1622.4,3.7618]
[1744680037364,6.44004132,1622.8,1622.4,6.92546]
[1744680037565,6.44004132,1622.8,1622.5,4.0]
[1744680037771,6.16294,1622.6,1622.5,4.0]
[1744680037994,6.16332,1622.5,1622.2,6.93904]
[1744680038465,0.27759132,1622.4,1622.2,6.93904]
[1744680038665,0.27759132,1622.4,1622.2,0.7746]
[1744680038878,6.1643,1622.3,1621.9,6.16548]
[1744680039094,6.16505,1622.1,1621.8,0.7746]
[1744680039382,6.16505,1622.1,1621.6,6.9412]
[1744680039383,6.1656,1621.9,1621.6,6.9412]
[1744680039584,6.44285132,1622.0,1621.6,6.94118]
[1744680039773,0.8156,1622.1,1621.8,6.16586]
[1744680039976,0.27759132,1621.9,1621.7,6.16601]
[1744680040192,6.9807,1622.1,1621.7,7.476738]
[1744680040511,6.16532,1622.0,1621.7,7.476738]
[1744680040705,0.2785224,1621.9,1621.7,7.476738]
[1744680041194,0.2785224,1621.9,1621.7,13.642948]
[1744680041396,0.2785224,1621.9,1621.7,7.476738]
[1744680041603,13.14432,1622.3,1621.9,6.16546]
[1744680041918,6.16514,1622.1,1621.8,3.0]
[1744680042286,6.16527,1622.0,1621.8,3.0]
[1744680042687,6.16527,1622.0,1621.6,6.16673]
[1744680042688,0.7555,1621.9,1621.6,6.16673]
[1744680043119,0.7555,1621.9,1621.6,7.400112]
[1744680043686,0.7555,1621.9,1621.5,6.16709]
[1744680043687,13.08708,1621.9,1621.5,6.16698]
[1744680044117,13.08696,1621.9,1621.5,6.16695]
[1744680044323,0.7555,1621.9,1621.6,6.16657]
[1744680044622,0.7555,1621.9,1621.6,12.33317]
[1744680044822,0.27278113,1621.8,1621.6,6.16657]
[1744680044985,0.27278113,1621.8,1621.5,6.16706]
[1744680045190,6.92126,1621.9,1621.5,14.5575716]
[1744680045390,6.43928113,1621.7,1621.5,3.0]
[1744680045614,12.3331,1621.7,1621.5,3.0]
[1744680045817,6.43865198,1621.6,1621.3,3.0]
[1744680046590,0.27177198,1621.6,1621.4,6.1672]
[1744680046835,0.27177198,1621.6,1621.5,6.22878985]
[1744680047126,11.84039,1622.0,1621.6,6.98397]
[1744680047664,6.16573,1621.9,1621.6,0.8175]
[1744680048193,6.16573,1621.9,1621.6,6.98416]
[1744680048389,12.33073,1622.0,1621.6,13.15071]
[1744680048611,6.16528,1622.0,1621.6,6.98405]
[1744680048897,6.16565,1621.9,1621.6,6.98405]
[1744680049298,6.99088,1622.1,1621.7,6.16603]
[1744680049504,6.99099,1622.1,1621.7,6.16636]
[1744680049697,6.16619,1621.8,1621.5,3.0]
[1744680049996,6.91692,1621.7,1621.4,3.0]
[1744680050609,0.7504,1621.7,1621.2,6.95982]
[1744680050899,0.7504,1621.7,1621.4,6.16732]
[1744680051104,6.16601,1621.8,1621.5,6.16697]
[1744680051526,6.95164,1622.1,1621.5,6.97591]
[1744680051722,6.95164,1622.1,1621.8,6.16585]
[1744680053133,13.11678,1622.1,1621.7,6.16622]
[1744680053313,13.11678,1622.1,1621.7,12.33245]
[1744680053508,6.16524,1622.0,1621.6,6.62182487]
[1744680053745,6.16571,1621.9,1621.6,6.22832553]
[1744680053922,0.26789145,1621.8,1621.6,12.39490553]
[1744680054122,6.16571,1621.9,1621.6,12.33325]
[1744680054315,0.26789145,1621.8,1621.6,12.33325]
[1744680054523,6.16571,1621.9,1621.6,6.16658]
[1744680054843,0.26789145,1621.8,1621.6,12.39482089]
[1744680055042,0.26789145,1621.8,1621.7,6.16636]
[1744680055213,0.7867,1622.1,1621.8,6.16561]
[1744680055412,0.7867,1622.1,1621.8,12.3313]
[1744680056157,0.7867,1622.1,1621.8,6.16561]
[1744680056373,6.16318,1622.6,1622.2,6.16429]
[1744680056514,12.65275,1622.7,1622.3,6.16387]
[1744680056714,6.4901,1622.7,1622.3,6.16399]
[1744680056913,13.13969,1622.7,1622.3,6.16385]
[1744680057453,6.16297,1622.6,1622.3,6.16385]
[1744680057669,6.16391,1622.4,1622.1,6.16477]
[1744680057868,0.789,1622.5,1622.0,12.6092]
[1744680058164,6.16446,1622.3,1621.9,12.33101]
[1744680058464,6.16446,1622.3,1622.0,6.16518]
[1744680059556,6.16437,1622.3,1621.9,6.16545]
[1744680059764,0.24854194,1622.2,1622.0,6.1652]
[1744680060255,0.24854194,1622.2,1622.0,6.16508]
[1744680060458,0.24854194,1622.2,1622.1,6.16484]
[1744680060779,0.24753327,1622.2,1622.0,6.16508]
[1744680061113,0.24753327,1622.2,1622.0,6.16506]
[1744680061317,6.95236,1622.5,1622.2,6.16442]
[1744680061535,0.24753327,1622.4,1622.2,6.16442]
[1744680061948,6.16416,1622.3,1622.1,0.616506]
[1744680062327,0.24753327,1622.2,1622.0,12.33031]
[1744680062541,6.95239,1622.5,1622.1,6.16484]
[1744680062760,0.24753327,1622.4,1622.3,6.16408]
[1744680063168,6.16337,1622.5,1622.2,6.16434]
[1744680063378,0.2528886,1622.4,1622.1,13.15564]
[1744680063584,0.2528886,1622.4,1622.3,6.16408]
[1744680063940,13.13908,1622.7,1622.3,6.16408]
[1744680064139,0.2528886,1622.6,1622.1,15.66482]
[1744680064339,6.16382,1622.4,1622.1,15.66482]
[1744680064851,0.2528886,1622.3,1622.1,15.66482]
[1744680065056,0.2528886,1622.3,1621.9,1.46499065]
[1744680065250,0.2528886,1622.3,1621.6,1.92769919]
[1744680065251,6.97803,1622.0,1621.6,8.09428919]
[1744680065455,7.2299586,1622.2,1621.8,0.7841]
[1744680065650,7.2299586,1622.2,1621.9,6.16547]
[1744680065651,0.8126,1622.2,1621.9,6.16547]
[1744680065867,6.97618,1622.5,1622.0,0.06164857]
[1744680066041,6.97521,1622.7,1622.4,6.16359]
[1744680067055,0.8126,1622.7,1622.4,6.16355]
[1744680067242,0.8005,1622.9,1622.6,6.1627]
[1744680067446,12.6356,1623.1,1622.7,6.22399388]
[1744680067642,0.8005,1623.1,1622.6,6.16293]
[1744680067841,12.32342,1623.0,1622.6,6.16293]
[1744680068164,6.96158,1623.1,1622.7,6.16243]
[1744680068360,6.16169,1623.0,1622.6,6.16291]
[1744680068564,6.16231,1622.8,1622.5,3.0]
[1744680068752,12.32474,1622.8,1622.5,3.0]
[1744680068965,6.16231,1622.8,1622.5,3.0]
[1744680069155,6.16181,1622.9,1622.5,9.22481702]
[1744680069360,6.16181,1622.9,1622.5,16.44971422]
[1744680069654,12.32397,1622.9,1622.5,10.2248372]